[Event "*** Titled Tuesday Blitz"]
[Site "Chess.com"]
[Date "2020.04.28"]
[Round "4"]
[White "GM_Levan_Pantsulaia"]
[Black "michaelk123"]
[Result "1-0"]
[WhiteElo "2813"]
[BlackElo "2524"]
[TimeControl "180+1"]
[EndTime "10:39:58 PDT"]
[Termination "GM_Levan_Pantsulaia won by resignation"]

1. Nf3 {[%clk 0:03:00.9]} 1... Nf6 {[%clk 0:02:59.1]} 2. g3 {[%clk 0:03:01.1]}
2... g6 {[%clk 0:02:59.2]} 3. b3 {[%clk 0:03:00.4]} 3... Bg7 {[%clk 0:02:57.7]}
4. Bb2 {[%clk 0:02:59.5]} 4... O-O {[%clk 0:02:57.9]} 5. Bg2 {[%clk 0:02:56.5]}
5... c5 {[%clk 0:02:57.1]} 6. c4 {[%clk 0:02:55.6]} 6... Nc6 {[%clk 0:02:55]} 7.
O-O {[%clk 0:02:52.9]} 7... d6 {[%clk 0:02:47.9]} 8. d4 {[%clk 0:02:52.3]} 8...
cxd4 {[%clk 0:02:47.8]} 9. Nxd4 {[%clk 0:02:53.1]} 9... Be6 {[%clk 0:02:47.6]}
10. Nxe6 {[%clk 0:02:41.4]} 10... fxe6 {[%clk 0:02:47.8]} 11. Bh3 {[%clk
0:02:36.1]} 11... e5 {[%clk 0:02:45.9]} 12. Nc3 {[%clk 0:02:33]} 12... Qb6
{[%clk 0:02:42.6]} 13. e3 {[%clk 0:02:29.4]} 13... Kh8 {[%clk 0:02:40.2]} 14.
Bg2 {[%clk 0:02:25.2]} 14... Rac8 {[%clk 0:02:38.8]} 15. Qd2 {[%clk 0:02:21.6]}
15... a6 {[%clk 0:02:37.6]} 16. Rac1 {[%clk 0:02:18]} 16... Qa5 {[%clk
0:02:36.1]} 17. a3 {[%clk 0:02:14.8]} 17... Qb6 {[%clk 0:02:30.9]} 18. b4 {[%clk
0:02:13.8]} 18... Nd8 {[%clk 0:02:31.4]} 19. c5 {[%clk 0:02:10.4]} 19... dxc5
{[%clk 0:02:21.3]} 20. Na4 {[%clk 0:02:10.3]} 20... Qd6 {[%clk 0:02:21.4]} 21.
Qxd6 {[%clk 0:02:04.4]} 21... exd6 {[%clk 0:02:21.3]} 22. bxc5 {[%clk
0:02:05.1]} 22... dxc5 {[%clk 0:02:18.2]} 23. Nb6 {[%clk 0:01:54.6]} 23... Nf7
{[%clk 0:01:53.2]} 24. Nxc8 {[%clk 0:01:52]} 24... Rxc8 {[%clk 0:01:53.3]} 25.
Rc2 {[%clk 0:01:45.9]} 25... b5 {[%clk 0:01:39.2]} 26. Bb7 {[%clk 0:01:45.1]}
26... Rc7 {[%clk 0:01:39.3]} 27. Bxa6 {[%clk 0:01:44.1]} 27... Nd6 {[%clk
0:01:39.3]} 28. Bxe5 {[%clk 0:01:41.3]} 28... Nfe8 {[%clk 0:01:30.9]} 29. Rd1
{[%clk 0:01:32.6]} 29... Bxe5 {[%clk 0:01:28.4]} 30. Rd5 {[%clk 0:01:29.9]}
30... Ra7 {[%clk 0:00:27]} 31. Bxb5 {[%clk 0:01:25]} 31... Nxb5 {[%clk 0:00:27]}
32. Rxe5 {[%clk 0:01:23.7]} 32... Ned6 {[%clk 0:00:26]} 33. a4 {[%clk
0:01:17.5]} 33... Rxa4 {[%clk 0:00:25.3]} 34. Rcxc5 {[%clk 0:01:17.7]} 34... Rb4
{[%clk 0:00:06.7]} 35. Re7 {[%clk 0:01:17.1]} 35... Rc4 {[%clk 0:00:04.5]} 36.
Rd5 {[%clk 0:01:10.4]} 36... Rc6 {[%clk 0:00:05.1]} 37. g4 {[%clk 0:01:04.9]}
37... Kg8 {[%clk 0:00:04.2]} 38. h4 {[%clk 0:01:04.1]} 38... h6 {[%clk 0:00:04]}
39. h5 {[%clk 0:01:00.3]} 39... gxh5 {[%clk 0:00:02.9]} 40. Rxh5 {[%clk
0:01:00]} 40... Nf7 {[%clk 0:00:03.1]} 41. Rxb5 {[%clk 0:00:57.3]} 1-0

[Event "*** Titled Tuesday Blitz"]
[Site "Chess.com"]
[Date "2020.04.28"]
[Round "4"]
[White "pheonixking2000"]
[Black "Barys1974"]
[Result "1-0"]
[WhiteElo "2814"]
[BlackElo "2637"]
[TimeControl "180+1"]
[EndTime "10:40:02 PDT"]
[Termination "pheonixking2000 won by resignation"]

1. c4 {[%clk 0:03:00.9]} 1... e5 {[%clk 0:02:59.4]} 2. g3 {[%clk 0:03:00.1]}
2... Nf6 {[%clk 0:02:57.9]} 3. Bg2 {[%clk 0:03:00.6]} 3... Bc5 {[%clk
0:02:56.8]} 4. Nf3 {[%clk 0:03:00.3]} 4... d6 {[%clk 0:02:54.3]} 5. Nc3 {[%clk
0:02:58.4]} 5... O-O {[%clk 0:02:52.7]} 6. d4 {[%clk 0:02:54.1]} 6... exd4
{[%clk 0:02:51.6]} 7. Nxd4 {[%clk 0:02:55]} 7... a6 {[%clk 0:02:47.3]} 8. O-O
{[%clk 0:02:54.9]} 8... Re8 {[%clk 0:02:45.5]} 9. b3 {[%clk 0:02:47.4]} 9... c6
{[%clk 0:02:37.9]} 10. Bb2 {[%clk 0:02:47.6]} 10... Bg4 {[%clk 0:02:35.4]} 11.
h3 {[%clk 0:02:45.8]} 11... Be6 {[%clk 0:02:30.3]} 12. Qd2 {[%clk 0:02:44.8]}
12... Nbd7 {[%clk 0:02:14.5]} 13. Rad1 {[%clk 0:02:44.9]} 13... d5 {[%clk
0:02:10.7]} 14. cxd5 {[%clk 0:02:15.3]} 14... cxd5 {[%clk 0:02:10.3]} 15. Nc2
{[%clk 0:01:38.8]} 15... Rc8 {[%clk 0:01:57.2]} 16. Kh2 {[%clk 0:01:30.2]} 16...
Nf8 {[%clk 0:01:38]} 17. e4 {[%clk 0:01:20.6]} 17... dxe4 {[%clk 0:01:32.7]} 18.
Qxd8 {[%clk 0:01:11.8]} 18... Rcxd8 {[%clk 0:01:26.3]} 19. Rxd8 {[%clk
0:01:12.7]} 19... Rxd8 {[%clk 0:01:25.9]} 20. Nxe4 {[%clk 0:01:13.6]} 20... Nxe4
{[%clk 0:01:25.6]} 21. Bxe4 {[%clk 0:01:14.5]} 21... Rd2 {[%clk 0:01:24.9]} 22.
Kg2 {[%clk 0:00:56.7]} 22... Bd5 {[%clk 0:00:54.5]} 23. Bxd5 {[%clk 0:00:52.4]}
23... Rxd5 {[%clk 0:00:55]} 24. Bc1 {[%clk 0:00:46]} 24... Ne6 {[%clk
0:00:53.6]} 25. Be3 {[%clk 0:00:42.1]} 25... Kf8 {[%clk 0:00:46.8]} 26. Rc1
{[%clk 0:00:38.4]} 26... Ke7 {[%clk 0:00:45.1]} 27. h4 {[%clk 0:00:37]} 27... h6
{[%clk 0:00:37.2]} 28. Kf3 {[%clk 0:00:31.7]} 28... b5 {[%clk 0:00:36.2]} 29.
Ke2 {[%clk 0:00:24.4]} 29... Kd6 {[%clk 0:00:33]} 30. b4 {[%clk 0:00:23.6]}
30... Bxe3 {[%clk 0:00:30.3]} 31. Nxe3 {[%clk 0:00:24.5]} 31... Rd4 {[%clk
0:00:25.9]} 32. Nf5+ {[%clk 0:00:24]} 32... Kd5 {[%clk 0:00:23.8]} 33. Nxd4
{[%clk 0:00:24.5]} 33... Nxd4+ {[%clk 0:00:24.2]} 34. Kd3 {[%clk 0:00:25]} 1-0

[Event "*** Titled Tuesday Blitz"]
[Site "Chess.com"]
[Date "2020.04.28"]
[Round "4"]
[White "Quiet_Desperation"]
[Black "Azatic"]
[Result "1-0"]
[WhiteElo "1828"]
[BlackElo "2633"]
[TimeControl "180+1"]
[EndTime "10:40:02 PDT"]
[Termination "Quiet_Desperation won by checkmate"]

1. e4 {[%clk 0:03:00.9]} 1... c5 {[%clk 0:03:00]} 2. d4 {[%clk 0:02:58.4]} 2...
cxd4 {[%clk 0:02:59.8]} 3. c3 {[%clk 0:02:59.2]} 3... dxc3 {[%clk 0:03:00.6]} 4.
Nxc3 {[%clk 0:02:59.7]} 4... Nc6 {[%clk 0:02:57.3]} 5. Nf3 {[%clk 0:03:00.6]}
5... d6 {[%clk 0:02:57.2]} 6. Bc4 {[%clk 0:03:00.7]} 6... Nf6 {[%clk 0:02:56.1]}
7. e5 {[%clk 0:02:53.9]} 7... dxe5 {[%clk 0:02:44.2]} 8. Qxd8+ {[%clk
0:02:53.3]} 8... Nxd8 {[%clk 0:02:34.4]} 9. Nxe5 {[%clk 0:02:52.7]} 9... Be6
{[%clk 0:02:33.2]} 10. Bb5+ {[%clk 0:02:37.8]} 10... Bd7 {[%clk 0:02:21.8]} 11.
Nd5 {[%clk 0:02:28]} 11... Nc6 {[%clk 0:02:06.4]} 12. Bxc6 {[%clk 0:02:16.7]}
12... Nxd5 {[%clk 0:01:48.4]} 13. Bxd7+ {[%clk 0:02:04.8]} 13... Kd8 {[%clk
0:01:47.9]} 14. Ba4 {[%clk 0:01:57.4]} 14... Kc7 {[%clk 0:01:40.2]} 15. Nxf7
{[%clk 0:01:50.6]} 15... Rg8 {[%clk 0:01:39.8]} 16. Bb3 {[%clk 0:01:50.1]} 16...
e6 {[%clk 0:01:39.7]} 17. O-O {[%clk 0:01:45.5]} 17... Bc5 {[%clk 0:01:30.1]}
18. Ng5 {[%clk 0:01:35.3]} 18... Rge8 {[%clk 0:01:12]} 19. Nxe6+ {[%clk
0:01:33.6]} 19... Rxe6 {[%clk 0:01:12.9]} 20. Bxd5 {[%clk 0:01:33.6]} 20... Rg6
{[%clk 0:01:12.7]} 21. Bf4+ {[%clk 0:01:30.3]} 21... Kb6 {[%clk 0:01:11.7]} 22.
a3 {[%clk 0:01:27.9]} 22... Rf8 {[%clk 0:01:10.6]} 23. Bg3 {[%clk 0:01:25.9]}
23... Bd4 {[%clk 0:01:06.6]} 24. Rad1 {[%clk 0:01:20.2]} 24... Bxb2 {[%clk
0:00:49.7]} 25. Rb1 {[%clk 0:01:19.2]} 25... Kc5 {[%clk 0:00:49.9]} 26. Rxb2
{[%clk 0:01:14]} 26... Kxd5 {[%clk 0:00:49.7]} 27. Rxb7 {[%clk 0:01:13.9]} 27...
Ra8 {[%clk 0:00:47.4]} 28. Rd1+ {[%clk 0:01:11.6]} 28... Kc6 {[%clk 0:00:46.4]}
29. Rc7+ {[%clk 0:01:10]} 29... Kb6 {[%clk 0:00:46.4]} 30. Rb1+ {[%clk
0:01:10.1]} 30... Ka5 {[%clk 0:00:46]} 31. Rc5+ {[%clk 0:01:06.6]} 31... Ka4
{[%clk 0:00:46]} 32. Rc4+ {[%clk 0:01:03]} 32... Kxa3 {[%clk 0:00:37.7]} 33.
Rcb4 {[%clk 0:00:59.4]} 33... Rc6 {[%clk 0:00:31.9]} 34. R4b3+ {[%clk
0:00:57.8]} 34... Ka4 {[%clk 0:00:31.6]} 35. h4 {[%clk 0:00:55.2]} 35... Rac8
{[%clk 0:00:31]} 36. Rb4+ {[%clk 0:00:51.6]} 36... Ka5 {[%clk 0:00:30.7]} 37.
Kh2 {[%clk 0:00:50]} 37... h5 {[%clk 0:00:30.2]} 38. Bf4 {[%clk 0:00:46.4]}
38... Rc3 {[%clk 0:00:25.2]} 39. Bd2 {[%clk 0:00:42.3]} 39... Rc2 {[%clk
0:00:21.6]} 40. Be1 {[%clk 0:00:37.1]} 40... Ka6 {[%clk 0:00:18.3]} 41. Ra4#
{[%clk 0:00:35.1]} 1-0

[Event "*** Titled Tuesday Blitz"]
[Site "Chess.com"]
[Date "2020.04.28"]
[Round "4"]
[White "Diego_FloresQ"]
[Black "Fy_Rakotomaharo"]
[Result "0-1"]
[WhiteElo "2414"]
[BlackElo "2641"]
[TimeControl "180+1"]
[EndTime "10:40:04 PDT"]
[Termination "Fy_Rakotomaharo won by resignation"]

1. e4 {[%clk 0:02:18.6]} 1... c5 {[%clk 0:02:59.5]} 2. Nf3 {[%clk 0:02:17.2]}
2... d6 {[%clk 0:02:59.9]} 3. d4 {[%clk 0:02:14.9]} 3... cxd4 {[%clk 0:03:00.8]}
4. Nxd4 {[%clk 0:02:12.1]} 4... Nf6 {[%clk 0:03:01.3]} 5. Nc3 {[%clk 0:02:12.1]}
5... a6 {[%clk 0:03:01.4]} 6. Bg5 {[%clk 0:02:12.5]} 6... e6 {[%clk 0:03:01.4]}
7. Qe2 {[%clk 0:02:12.7]} 7... Be7 {[%clk 0:02:57.3]} 8. f4 {[%clk 0:02:12.1]}
8... h6 {[%clk 0:02:56.7]} 9. Bh4 {[%clk 0:02:12.6]} 9... Nxe4 {[%clk
0:02:56.6]} 10. Bxe7 {[%clk 0:02:13]} 10... Nxc3 {[%clk 0:02:54.7]} 11. Qc4
{[%clk 0:02:13.6]} 11... Kxe7 {[%clk 0:02:46.6]} 12. Qxc3 {[%clk 0:02:12.9]}
12... Re8 {[%clk 0:02:43.2]} 13. O-O-O {[%clk 0:02:12.2]} 13... Kf8 {[%clk
0:02:41.7]} 14. Nf3 {[%clk 0:02:12.8]} 14... Nc6 {[%clk 0:02:39.8]} 15. Qa3
{[%clk 0:02:08]} 15... Kg8 {[%clk 0:02:36.2]} 16. Qxd6 {[%clk 0:02:06.9]} 16...
Qf6 {[%clk 0:02:36.6]} 17. Be2 {[%clk 0:01:55.6]} 17... e5 {[%clk 0:02:27.4]}
18. Qxf6 {[%clk 0:01:50.6]} 18... gxf6 {[%clk 0:02:28.3]} 19. fxe5 {[%clk
0:01:51.3]} 19... fxe5 {[%clk 0:02:28.1]} 20. Rhf1 {[%clk 0:01:44.7]} 20... Be6
{[%clk 0:02:24.1]} 21. Kb1 {[%clk 0:01:43.1]} 21... Nb4 {[%clk 0:02:10.1]} 22.
a3 {[%clk 0:01:41.9]} 22... Nd5 {[%clk 0:02:10.1]} 23. Rd2 {[%clk 0:01:31.5]}
23... Ne3 {[%clk 0:02:07]} 24. Re1 {[%clk 0:01:29]} 24... f6 {[%clk 0:02:00.4]}
25. Bd3 {[%clk 0:01:25.8]} 25... Nc4 {[%clk 0:01:54.8]} 26. Bxc4 {[%clk
0:01:24.3]} 26... Bxc4 {[%clk 0:01:55.7]} 27. Rd7 {[%clk 0:01:19.2]} 27... Rad8
{[%clk 0:01:50.2]} 28. Rxd8 {[%clk 0:00:58.8]} 28... Rxd8 {[%clk 0:01:49.9]} 29.
Kc1 {[%clk 0:00:59.2]} 29... Kf7 {[%clk 0:01:44.2]} 30. g3 {[%clk 0:00:58.5]}
30... Ke6 {[%clk 0:01:38.9]} 31. Rd1 {[%clk 0:00:51.5]} 31... Rc8 {[%clk
0:01:35.5]} 32. Rd2 {[%clk 0:00:46.8]} 32... Bd5 {[%clk 0:01:33.9]} 33. Ng1
{[%clk 0:00:43.6]} 33... h5 {[%clk 0:01:28.1]} 34. Kd1 {[%clk 0:00:42.8]} 34...
h4 {[%clk 0:01:27.4]} 35. gxh4 {[%clk 0:00:41.5]} 35... Rh8 {[%clk 0:01:26.2]}
36. Ke1 {[%clk 0:00:40.3]} 36... Rxh4 {[%clk 0:01:23.8]} 37. h3 {[%clk
0:00:34.2]} 37... f5 {[%clk 0:01:22.4]} 38. Kf2 {[%clk 0:00:31.9]} 38... f4
{[%clk 0:01:20]} 39. b3 {[%clk 0:00:21.9]} 39... e4 {[%clk 0:01:17]} 40. Rd4
{[%clk 0:00:22.3]} 40... Ke5 {[%clk 0:01:12.9]} 41. Rb4 {[%clk 0:00:21.2]} 41...
Rh6 {[%clk 0:01:10.6]} 42. c4 {[%clk 0:00:20.6]} 42... Bc6 {[%clk 0:01:10.4]}
43. Rb6 {[%clk 0:00:18.7]} 43... Rg6 {[%clk 0:01:03.2]} 44. b4 {[%clk
0:00:18.2]} 44... e3+ {[%clk 0:01:03.3]} 45. Kf1 {[%clk 0:00:18.1]} 45... Bg2+
{[%clk 0:01:03.7]} 46. Ke2 {[%clk 0:00:18]} 46... Rxb6 {[%clk 0:01:04.2]} 0-1

[Event "*** Titled Tuesday Blitz"]
[Site "Chess.com"]
[Date "2020.04.28"]
[Round "4"]
[White "AlphalphaZero"]
[Black "ulkaf961"]
[Result "1-0"]
[WhiteElo "2489"]
[BlackElo "2189"]
[TimeControl "180+1"]
[EndTime "10:40:04 PDT"]
[Termination "AlphalphaZero won by resignation"]

1. e4 {[%clk 0:03:00.9]} 1... e6 {[%clk 0:03:00.2]} 2. d4 {[%clk 0:03:00]} 2...
d5 {[%clk 0:02:59.9]} 3. Nd2 {[%clk 0:03:00.2]} 3... a6 {[%clk 0:02:58.8]} 4.
Ngf3 {[%clk 0:02:56.3]} 4... c5 {[%clk 0:02:58]} 5. dxc5 {[%clk 0:02:56.1]} 5...
Nf6 {[%clk 0:02:47.1]} 6. e5 {[%clk 0:02:48]} 6... Nfd7 {[%clk 0:02:46.7]} 7. a3
{[%clk 0:02:48.1]} 7... Bxc5 {[%clk 0:02:44.2]} 8. b4 {[%clk 0:02:48.2]} 8...
Bb6 {[%clk 0:02:43.3]} 9. Bd3 {[%clk 0:02:47.4]} 9... Nc6 {[%clk 0:02:41]} 10.
Bb2 {[%clk 0:02:47.8]} 10... O-O {[%clk 0:02:25.9]} 11. O-O {[%clk 0:02:44.4]}
11... f5 {[%clk 0:02:09]} 12. c4 {[%clk 0:02:43.8]} 12... dxc4 {[%clk
0:02:02.1]} 13. Nxc4 {[%clk 0:02:43.3]} 13... Bc7 {[%clk 0:02:02]} 14. Qe2
{[%clk 0:02:40.1]} 14... Nb6 {[%clk 0:01:45.5]} 15. Rad1 {[%clk 0:02:35]} 15...
Nd5 {[%clk 0:01:44.8]} 16. Qc2 {[%clk 0:02:07.5]} 16... Qe8 {[%clk 0:01:39.5]}
17. Rfe1 {[%clk 0:01:58.2]} 17... Qg6 {[%clk 0:01:34.9]} 18. Nd6 {[%clk
0:01:56.6]} 18... Bd7 {[%clk 0:01:28.5]} 19. Nxf5 {[%clk 0:01:44.4]} 19... exf5
{[%clk 0:00:25.3]} 20. Bc4 {[%clk 0:01:43.5]} 20... Kh8 {[%clk 0:00:19.7]} 21.
Bxd5 {[%clk 0:01:41.8]} 21... Rae8 {[%clk 0:00:18.9]} 22. Qc3 {[%clk 0:01:30.5]}
22... Be6 {[%clk 0:00:18.5]} 23. Bxc6 {[%clk 0:01:28.1]} 23... bxc6 {[%clk
0:00:17.3]} 24. Qxc6 {[%clk 0:01:28]} 24... Bb8 {[%clk 0:00:17.8]} 25. Qxa6
{[%clk 0:01:22.1]} 25... Qg4 {[%clk 0:00:16.8]} 26. h3 {[%clk 0:01:17.1]} 26...
Qh5 {[%clk 0:00:16.4]} 27. Nd4 {[%clk 0:01:12.5]} 27... Bd5 {[%clk 0:00:16.1]}
28. Nc6 {[%clk 0:01:08.7]} 28... Bxc6 {[%clk 0:00:15.7]} 29. Qxc6 {[%clk
0:01:08.2]} 29... Rc8 {[%clk 0:00:15]} 30. Qd5 {[%clk 0:01:03]} 30... Rfe8
{[%clk 0:00:14.7]} 31. e6 {[%clk 0:00:59.5]} 31... f4 {[%clk 0:00:14]} 32. Qd7
{[%clk 0:00:56.5]} 32... Qg6 {[%clk 0:00:10.6]} 33. Qf7 {[%clk 0:00:54.3]} 33...
Qxf7 {[%clk 0:00:08.9]} 34. exf7 {[%clk 0:00:54]} 34... Rf8 {[%clk 0:00:09.5]}
35. Rd7 {[%clk 0:00:50.8]} 35... h6 {[%clk 0:00:09.7]} 36. Bd4 {[%clk
0:00:50.6]} 36... Kh7 {[%clk 0:00:08.3]} 37. Bc5 {[%clk 0:00:50.7]} 37... Kg6
{[%clk 0:00:08.8]} 38. Bxf8 {[%clk 0:00:50.3]} 38... Rxf8 {[%clk 0:00:08.8]} 39.
Re8 {[%clk 0:00:48.8]} 1-0

[Event "*** Titled Tuesday Blitz"]
[Site "Chess.com"]
[Date "2020.04.28"]
[Round "4"]
[White "Riptide27"]
[Black "Riazantsev"]
[Result "1/2-1/2"]
[WhiteElo "2478"]
[BlackElo "2659"]
[TimeControl "180+1"]
[EndTime "10:40:05 PDT"]
[Termination "Game drawn - insufficient material"]

1. d4 {[%clk 0:03:00.9]} 1... e6 {[%clk 0:02:59.6]} 2. c4 {[%clk 0:02:59.5]}
2... b6 {[%clk 0:03:00]} 3. Nc3 {[%clk 0:02:57.8]} 3... Bb4 {[%clk 0:02:59.4]}
4. Nf3 {[%clk 0:02:55.7]} 4... Bb7 {[%clk 0:02:59.3]} 5. e3 {[%clk 0:02:53.7]}
5... f5 {[%clk 0:02:59.4]} 6. Bd2 {[%clk 0:02:52.3]} 6... Nf6 {[%clk 0:02:59.2]}
7. Bd3 {[%clk 0:02:52.8]} 7... O-O {[%clk 0:02:59.1]} 8. O-O {[%clk 0:02:52.7]}
8... d6 {[%clk 0:02:53.8]} 9. Rc1 {[%clk 0:02:51]} 9... Nbd7 {[%clk 0:02:52.6]}
10. a3 {[%clk 0:02:41.4]} 10... Bxc3 {[%clk 0:02:52.6]} 11. Bxc3 {[%clk
0:02:42.3]} 11... Ne4 {[%clk 0:02:53]} 12. Nd2 {[%clk 0:02:42.4]} 12... Qh4
{[%clk 0:02:49]} 13. f3 {[%clk 0:02:36.6]} 13... Nxc3 {[%clk 0:02:46.1]} 14.
Rxc3 {[%clk 0:02:35.8]} 14... c5 {[%clk 0:02:46.4]} 15. Qe1 {[%clk 0:02:29.9]}
15... Qf6 {[%clk 0:02:39.5]} 16. Qf2 {[%clk 0:02:29.6]} 16... f4 {[%clk
0:02:31.5]} 17. dxc5 {[%clk 0:02:21.4]} 17... Nxc5 {[%clk 0:02:29.3]} 18. Bc2
{[%clk 0:02:14]} 18... a5 {[%clk 0:02:23.4]} 19. exf4 {[%clk 0:02:12]} 19...
Qxf4 {[%clk 0:02:22.2]} 20. b4 {[%clk 0:02:04.3]} 20... axb4 {[%clk 0:02:22.2]}
21. axb4 {[%clk 0:02:04.8]} 21... Nd7 {[%clk 0:02:22.8]} 22. Be4 {[%clk
0:01:57.5]} 22... Ra2 {[%clk 0:02:16.4]} 23. Bxb7 {[%clk 0:01:50.8]} 23... Rxd2
{[%clk 0:02:16.2]} 24. Qe3 {[%clk 0:01:51]} 24... Ne5 {[%clk 0:02:05.7]} 25.
Qxf4 {[%clk 0:01:48.7]} 25... Rxf4 {[%clk 0:02:05.4]} 26. Be4 {[%clk 0:01:47.4]}
26... d5 {[%clk 0:01:56.2]} 27. cxd5 {[%clk 0:01:48.3]} 27... exd5 {[%clk
0:01:56.4]} 28. Rc8+ {[%clk 0:01:47.3]} 28... Kf7 {[%clk 0:01:56.8]} 29. Bxh7
{[%clk 0:01:46.7]} 29... Rxb4 {[%clk 0:01:55.4]} 30. Rfc1 {[%clk 0:01:44]} 30...
Rbb2 {[%clk 0:01:37.4]} 31. R8c2 {[%clk 0:01:32.3]} 31... Rbxc2 {[%clk
0:01:30.3]} 32. Rxc2 {[%clk 0:01:23.7]} 32... Rxc2 {[%clk 0:01:29.5]} 33. Bxc2
{[%clk 0:01:22.2]} 33... b5 {[%clk 0:01:26.9]} 34. Kf2 {[%clk 0:01:20.3]} 34...
Ke6 {[%clk 0:01:26.5]} 35. Ke3 {[%clk 0:01:18.9]} 35... b4 {[%clk 0:01:21.1]}
36. h4 {[%clk 0:01:15.2]} 36... Nc6 {[%clk 0:01:18.7]} 37. g4 {[%clk 0:01:08.5]}
37... Na5 {[%clk 0:01:12]} 38. h5 {[%clk 0:01:03.6]} 38... b3 {[%clk 0:01:12.1]}
39. Bf5+ {[%clk 0:00:59.7]} 39... Kf6 {[%clk 0:01:01.6]} 40. Kf4 {[%clk
0:00:59.4]} 40... Nc4 {[%clk 0:00:55.7]} 41. g5+ {[%clk 0:00:58.9]} 41... Kf7
{[%clk 0:00:56.3]} 42. h6 {[%clk 0:00:58.7]} 42... gxh6 {[%clk 0:00:56.2]} 43.
gxh6 {[%clk 0:00:57.9]} 43... b2 {[%clk 0:00:56.4]} 44. Bd3 {[%clk 0:00:53.7]}
44... Kf6 {[%clk 0:00:48.9]} 45. Bc2 {[%clk 0:00:51.1]} 45... Na3 {[%clk
0:00:46.9]} 46. Bd3 {[%clk 0:00:50.3]} 46... b1=Q {[%clk 0:00:46]} 47. Bxb1
{[%clk 0:00:49.9]} 47... Nxb1 {[%clk 0:00:46.6]} 48. h7 {[%clk 0:00:49.3]} 48...
Kg7 {[%clk 0:00:46.7]} 49. Ke5 {[%clk 0:00:49.2]} 49... Nc3 {[%clk 0:00:43.2]}
50. Kd4 {[%clk 0:00:48.8]} 50... Ne2+ {[%clk 0:00:40.7]} 51. Kxd5 {[%clk
0:00:48.5]} 51... Kxh7 {[%clk 0:00:40.7]} 52. f4 {[%clk 0:00:46.9]} 52... Nxf4+
{[%clk 0:00:40.3]} 1/2-1/2

[Event "*** Titled Tuesday Blitz"]
[Site "Chess.com"]
[Date "2020.04.28"]
[Round "4"]
[White "eljanov"]
[Black "belisarius64"]
[Result "1-0"]
[WhiteElo "2890"]
[BlackElo "2626"]
[TimeControl "180+1"]
[EndTime "10:40:06 PDT"]
[Termination "eljanov won on time"]

1. Nf3 {[%clk 0:03:00.9]} 1... Nf6 {[%clk 0:02:59.4]} 2. g3 {[%clk 0:03:01.2]}
2... g6 {[%clk 0:02:58.6]} 3. Bg2 {[%clk 0:03:02.1]} 3... Bg7 {[%clk 0:02:59.2]}
4. c4 {[%clk 0:03:02.2]} 4... c6 {[%clk 0:02:57.4]} 5. O-O {[%clk 0:03:01.4]}
5... d5 {[%clk 0:02:57]} 6. d4 {[%clk 0:03:00.7]} 6... O-O {[%clk 0:02:57.4]} 7.
Qb3 {[%clk 0:02:57.3]} 7... a5 {[%clk 0:02:52.6]} 8. Rd1 {[%clk 0:02:56.1]} 8...
Bf5 {[%clk 0:02:50.1]} 9. Qxb7 {[%clk 0:02:46.5]} 9... Na6 {[%clk 0:02:43.8]}
10. Bf4 {[%clk 0:02:36.8]} 10... Nb4 {[%clk 0:02:37.7]} 11. Nc3 {[%clk
0:02:26.2]} 11... Ne8 {[%clk 0:02:23.2]} 12. cxd5 {[%clk 0:02:06.9]} 12... Nd6
{[%clk 0:02:04.7]} 13. Bxd6 {[%clk 0:02:05.3]} 13... Qxd6 {[%clk 0:02:05.6]} 14.
Qb6 {[%clk 0:01:43.1]} 14... Rfb8 {[%clk 0:02:01]} 15. Qc5 {[%clk 0:01:43.2]}
15... Qxc5 {[%clk 0:01:53.6]} 16. dxc5 {[%clk 0:01:44.1]} 16... cxd5 {[%clk
0:01:44.4]} 17. Nh4 {[%clk 0:01:00.7]} 17... Be6 {[%clk 0:01:23.8]} 18. Nxd5
{[%clk 0:00:54.5]} 18... Nxd5 {[%clk 0:01:19.2]} 19. Bxd5 {[%clk 0:00:54.6]}
19... Bxd5 {[%clk 0:01:18.3]} 20. Rxd5 {[%clk 0:00:55.5]} 20... Rxb2 {[%clk
0:01:18.5]} 21. Rc1 {[%clk 0:00:44.6]} 21... e6 {[%clk 0:01:05]} 22. Rd7 {[%clk
0:00:42.6]} 22... Rc8 {[%clk 0:00:16.4]} 23. c6 {[%clk 0:00:39.3]} 23... Rxa2
{[%clk 0:00:15.8]} 24. Nf3 {[%clk 0:00:35.1]} 24... Bf6 {[%clk 0:00:16.4]} 25.
Nd2 {[%clk 0:00:28.5]} 25... a4 {[%clk 0:00:04.2]} 26. Ne4 {[%clk 0:00:28.2]}
26... Kg7 {[%clk 0:00:04.5]} 27. Nxf6 {[%clk 0:00:20.3]} 27... Kxf6 {[%clk
0:00:04.3]} 28. c7 {[%clk 0:00:21.2]} 28... Rb2 {[%clk 0:00:01.8]} 29. Rd8
{[%clk 0:00:21.1]} 1-0

[Event "*** Titled Tuesday Blitz"]
[Site "Chess.com"]
[Date "2020.04.28"]
[Round "4"]
[White "ChessQueen"]
[Black "dimke2802"]
[Result "1-0"]
[WhiteElo "2730"]
[BlackElo "2501"]
[TimeControl "180+1"]
[EndTime "10:40:07 PDT"]
[Termination "ChessQueen won by resignation"]

1. Nf3 {[%clk 0:03:00.9]} 1... Nf6 {[%clk 0:02:58.4]} 2. g3 {[%clk 0:03:01.1]}
2... g6 {[%clk 0:02:58.7]} 3. Bg2 {[%clk 0:03:02]} 3... Bg7 {[%clk 0:02:59.3]}
4. O-O {[%clk 0:03:02.5]} 4... O-O {[%clk 0:02:59.7]} 5. d4 {[%clk 0:03:03.4]}
5... d6 {[%clk 0:03:00.1]} 6. c4 {[%clk 0:03:04.3]} 6... c6 {[%clk 0:03:00.5]}
7. Nc3 {[%clk 0:03:04.8]} 7... Bf5 {[%clk 0:03:00.5]} 8. Re1 {[%clk 0:03:04]}
8... Ne4 {[%clk 0:03:00.2]} 9. Nh4 {[%clk 0:02:50.8]} 9... Nxc3 {[%clk
0:02:53.8]} 10. bxc3 {[%clk 0:02:51.7]} 10... Be6 {[%clk 0:02:52.5]} 11. Qd3
{[%clk 0:02:47.4]} 11... Qa5 {[%clk 0:02:45.7]} 12. e4 {[%clk 0:02:46.7]} 12...
Qa6 {[%clk 0:02:44.8]} 13. Bf1 {[%clk 0:02:44.2]} 13... c5 {[%clk 0:02:35.1]}
14. Bg5 {[%clk 0:02:31.1]} 14... Re8 {[%clk 0:02:31.7]} 15. Be3 {[%clk
0:02:26.1]} 15... Nc6 {[%clk 0:02:29.1]} 16. f4 {[%clk 0:02:22.6]} 16... Bc8
{[%clk 0:01:53.3]} 17. e5 {[%clk 0:02:14.5]} 17... dxe5 {[%clk 0:01:42]} 18.
fxe5 {[%clk 0:02:14.3]} 18... Be6 {[%clk 0:01:38.4]} 19. d5 {[%clk 0:01:51.2]}
19... Nxe5 {[%clk 0:01:37.1]} 20. Qe4 {[%clk 0:01:51.8]} 20... Bd7 {[%clk
0:01:28]} 21. Bxc5 {[%clk 0:01:51]} 21... Rac8 {[%clk 0:01:18.6]} 22. Bd4 {[%clk
0:01:50.5]} 22... Nxc4 {[%clk 0:01:18.7]} 23. Bxg7 {[%clk 0:01:43.4]} 23... Kxg7
{[%clk 0:01:19.6]} 24. Nf3 {[%clk 0:01:31.8]} 24... Bf5 {[%clk 0:01:16.9]} 25.
Qf4 {[%clk 0:01:25.3]} 25... Qb6+ {[%clk 0:01:14.7]} 26. Kh1 {[%clk 0:01:16.6]}
26... Nd6 {[%clk 0:01:14.9]} 27. g4 {[%clk 0:01:14.6]} 27... Bd7 {[%clk
0:01:10.6]} 28. c4 {[%clk 0:01:14.4]} 28... Qc5 {[%clk 0:00:45.1]} 29. Rac1
{[%clk 0:01:13.1]} 29... b6 {[%clk 0:00:41.7]} 30. Ne5 {[%clk 0:01:12.1]} 30...
Ba4 {[%clk 0:00:38.6]} 31. Rc3 {[%clk 0:01:05.6]} 31... f6 {[%clk 0:00:38.3]}
32. Nd3 {[%clk 0:00:49.7]} 32... Qc7 {[%clk 0:00:34.6]} 33. Qe3 {[%clk
0:00:41.3]} 33... Nxc4 {[%clk 0:00:27.7]} 34. Qc1 {[%clk 0:00:40.2]} 34... b5
{[%clk 0:00:27.8]} 35. Nf4 {[%clk 0:00:39.5]} 35... Qb7 {[%clk 0:00:25.7]} 36.
Ne6+ {[%clk 0:00:39.5]} 36... Kh8 {[%clk 0:00:23.4]} 37. Qh6 {[%clk 0:00:35.8]}
37... Rg8 {[%clk 0:00:22.7]} 38. Rh3 {[%clk 0:00:35.1]} 38... Qxd5+ {[%clk
0:00:17.7]} 39. Bg2 {[%clk 0:00:35.1]} 1-0